Cogmind - Beta 17 @@@ ROGUE MODE // 2026.07.13 @ 16:44:57 Player: JoshuaCF Result: Destroyed by Y-45 Defender with Beam Rifle Performance ------------- Evolutions (0) 0 Regions Visited (2) 400 Robots Destroyed (22) 110 Value Destroyed (502) 502 Prototype IDs (2) 40 Alien Tech Used (0) 0 Bonus (0) 0 TOTAL SCORE: 1052 Bonus ------- None Cogmind --------- Core Integrity 0/250 Matter 280/300 Energy 144/250 System Corruption 0% Temperature Warm (173) Movement Walking (120) Location -10/Mines Parts ------- > --- POWER (1) -------- Ion Engine > --- PROPULSION (2) --- Aluminum Leg Aluminum Leg > --- UTILITY (2) ------ Small Storage Unit Core Shielding > --- WEAPON (2) ------- Improved Medium Laser Light Assault Rifle > --- INVENTORY (8) ---- Ion Engine Aluminum Leg Aluminum Leg Aluminum Leg Improved Medium Laser Light Assault Rifle Grenade Launcher Peak State ------------ > --- POWER ------------ Light Nuclear Core > --- PROPULSION ------- Aluminum Leg Aluminum Leg > --- UTILITY ---------- Heat Sink Small Storage Unit > --- WEAPON ----------- Improved Medium Laser Light Assault Rifle > --- INVENTORY -------- Ion Engine Ion Engine Aluminum Leg Aluminum Leg Aluminum Leg Improved Medium Laser Light Assault Rifle Grenade Launcher [Rating: 12] Favorites ----------- Power Light Nuclear Core Engine Light Ion Engine Power Core Light Nuclear Core Propulsion Aluminum Leg Leg Aluminum Leg Utility Small Storage Unit Device Heat Sink Storage Small Storage Unit Protection Core Shielding Weapon Light Assault Rifle Energy Gun Medium Laser Energy Cannon Beam Cannon Ballistic Gun Light Assault Rifle Launcher Grenade Launcher Build | -11 -10 -10 ------- Run | Yrd Mat Min Slots Evolved . | . . . Power . | . . . Propulsion . | . . . Utility . | . . . Weapon . | . . . Parts Attached 24 | 6 14 4 Power 3 | 1 1 1 Engine 2 | 1 . 1 Core 1 | . 1 . Reactor . | . . . Propulsion 10 | 2 7 1 Treads . | . . . Leg 10 | 2 7 1 Wheel . | . . . Hover . | . . . Flight . | . . . Utility 4 | 1 2 1 Device 2 | . 2 . Storage 1 | 1 . . Processor . | . . . Hackware . | . . . Protection 1 | . . 1 Artifact . | . . . Weapon 7 | 2 4 1 Energy Gun 4 | 1 3 . Energy Cannon 1 | . 1 . Ballistic Gun 1 | 1 . . Ballistic Cannon . | . . . Launcher 1 | . . 1 Special Weapon . | . . . Impact Weapon . | . . . Slashing Weapon . | . . . Piercing Weapon . | . . . Special Melee Weapon . | . . . Unidentified Prototypes . | . . . Parts Lost 4 | . 2 2 Power 1 | . . 1 Propulsion 1 | . 1 . Utility 2 | . 1 1 Weapon . | . . . Highest Loss Streak 2 | . 2 2 To Critical Strikes . | . . . Average Backups 7 | 3 7 7 Power 2 | . 2 1 Propulsion 2 | 1 2 3 Utility . | . . . Weapon 3 | . 3 3 Tool/Special . | . . . Unused Backups 12 | . 7 5 Power 2 | . 1 1 Propulsion 7 | . 5 2 Utility . | . . . Weapon 3 | . 1 2 Tool/Special . | . . . Average Slot Usage (%) 99 | . 99 100 Engine 6 | . 7 . Core 7 | . 6 13 Leg 27 | . 27 28 Device 13 | . 13 12 Storage 14 | . 14 14 Energy Gun 13 | . 12 14 Ballistic Gun 13 | . 13 13 Peak Build Rating 12 | 6 12 12 Average Rating 9 | 5 8 11 On Entrance 6 | . 6 12 Avg Prop Armor Cover (%) . | . . . Naked Turns . | . . . Heaviest Build 15 | 11 15 15 Greatest Support 20 | 20 20 20 Greatest Overweight (x) 2 | 2 1 . Average Overweight (x) . | . . . Largest Inventory Capacity 8 | 8 8 8 Average Capacity 7 | 7 8 8 Most Carried 8 | 6 8 8 Average Carried 7 | 3 7 7 Final Capacity 8 | 8 8 8 Final Carried 8 | 6 8 7 Class Distribution -------------------- 57% | Mutant 42% | Scavenger-Mutant Dominant Class ---------------- Mutant | -10/Materials Mutant | -10/Mines Resources | -11 -10 -10 ----------- Run | Yrd Mat Min Matter Collected 513 | 225 237 51 Remotely . | . . . Salvage Created 626 | . 479 147 Parts 46 | . 34 12 Haulers Intercepted . | . . . Recyclers Shooed 4 | . 1 3 Parts Field Recycled . | . . . Retrieved Matter . | . . . Parts Self-Destructed . | . . . Prevented . | . . . Parts Restored . | . . . Kills | -11 -10 -10 ------- Run | Yrd Mat Min Combat Hostiles Destroyed 17 | . 14 3 Guns 13 | . 12 1 Cannons 1 | . 1 . AOE 2 | . . 2 Classes Destroyed 7 | . 4 3 Worker 1 | . . 1 Builder 2 | . . 2 Recycler 1 | . . 1 Watcher 1 | . 1 . Swarmer 6 | . 3 3 Grunt 9 | . 9 . Subdweller 2 | . 2 . Best Kill Streak 4 | . 4 3 Combat Bots Only 4 | . 4 3 Max Kills in Single Turn 3 | . 1 3 Gunslinging . | . . . Exploded 2 | . . 2 Melee . | . . . Uniques/NPCs Destroyed . | . . . Combat | -11 -10 -10 -------- Run | Yrd Mat Min Hostile Shots Fired 108 | . 78 30 Missed 29 | . 23 6 Hits 79 | . 55 24 Projectile 79 | . 55 24 Critical Strikes 3 | . 1 2 Damage Taken 1023 | . 661 362 Core 257 | . 153 104 Absorbed by Shields . | . . . Redirected to Shielding 13 | . . 13 Core Remaining (%) 100 | 100 . . Volleys Fired 60 | . 43 17 Largest 2 | . 2 2 Hottest 110 | . 110 86 Shots Fired 119 | . 85 34 Gun 112 | . 79 33 Cannon 6 | . 6 . Launcher 1 | . . 1 Special . | . . . Kinetic 58 | . 42 16 Thermal 60 | . 43 17 Explosive 1 | . . 1 Electromagnetic . | . . . Robot Hit Streak 23 | . 23 12 Robot Miss Streak 4 | . 4 3 Penetration Max . | . . . Secondary Targets 3 | . 3 . Max Gunslinging Chain 1 | . 1 . Shots Hit Robots 81 | . 56 25 Core Hits 43 | . 30 13 Critical Kills . | . . . Critical Parts Destroyed . | . . . Critical Strikes . | . . . Melee Attacks . | . . . Impact . | . . . Slashing . | . . . Piercing . | . . . Sneak Attacks . | . . . Combat Hostiles . | . . . Follow-up Attacks . | . . . Damage Inflicted 1040 | . 668 372 Guns 913 | . 597 316 Cannons 71 | . 71 . Explosions 56 | . . 56 Melee . | . . . Ramming . | . . . Kinetic 314 | . 200 114 Thermal 670 | . 468 202 Explosive 56 | . . 56 Electromagnetic . | . . . Impact . | . . . Slashing . | . . . Piercing . | . . . Highest Corruption . | . . . Average Corruption . | . . . Corruption Purged . | . . . Corruption Blocked . | . . . Overload Shots . | . . . Overflow Damage . | . . . Projectiles . | . . . Explosions . | . . . Melee . | . . . Knockbacks . | . . . Impact . | . . . Kinetic . | . . . Secondary . | . . . Self-Inflicted Damage 31 | . . 31 Shots 1 | . . 1 Rammed . | . . . Targets Rammed . | . . . Kicked . | . . . Crushed . | . . . Highest Temperature 157 | . 153 157 Average Temperature 44 | . 45 40 Received Heat Transfer 456 | . 321 135 Siege Activations . | . . . Martial Activations . | . . . Shielding Activations . | . . . Robots Disrupted . | . . . Combat Hostiles . | . . . Robots Corrupted . | . . . Combat Hostiles . | . . . Parts Fried . | . . . Impact Corruptions . | . . . Robots Melted 1 | . 1 . Combat Hostiles 1 | . 1 . Parts Melted 3 | . 1 2 Heat Transferred 1702 | . 1258 444 Parts Sabotaged . | . . . Parts Stolen . | . . . Parts Stripped . | . . . Power Chain Reactions . | . . . Alert | -11 -10 -10 ------- Run | Yrd Mat Min Maximum Alert Level . | . . . Low Security (%) 100 | 100 100 100 Level 1 . | . . . Level 2 . | . . . Level 3 . | . . . Level 4 . | . . . Level 5 . | . . . High Security . | . . . Max Security . | . . . Peak Influence 147 | . 147 89 Initial 12 | . . 12 Average 51 | . 55 49 Influence Increases 444 | . 347 97 Destroy 0b10 Robot/C 300 | . 240 60 Destroy 0b10 Robot/NC 25 | . 5 20 Destroy Leader 52 | . 42 10 Successful Hack 15 | . 15 . Disable Machine 15 | . 15 . Destroy Structure 7 | . . 7 Lose Combat Pursuer 30 | . 30 . Influence Decreases 444 | . 315 129 Entered New Map 20 | . . 20 Time Decay 395 | . 295 100 Lost Part 29 | . 20 9 Squads Dispatched 3 | . 3 . Investigation 2 | . 2 . Extermination . | . . . Reinforcement 1 | . 1 . Assault . | . . . Garrison . | . . . Intercept . | . . . Searches Triggered . | . . . Construction Impeded . | . . . Haulers Reinforced . | . . . Active Scanning Responses . | . . . Cargo Convoy Interrupts . | . . . Stealth | -11 -10 -10 --------- Run | Yrd Mat Min Distress Signals 1 | . 1 . Communications Jammed . | . . . Distress Signals . | . . . Times Spotted 34 | . 29 5 Peak Tracking Total 5 | . 5 2 Tactical Retreats 2 | . 2 . Traps | -11 -10 -10 ------- Run | Yrd Mat Min Traps Triggered 1 | . 1 . Indirectly . | . . . Trap Hack Attempts . | . . . Triggered . | . . . Disarmed . | . . . Reprogrammed . | . . . Reused . | . . . Traps Extracted . | . . . Installed . | . . . Triggered . | . . . Machines | -11 -10 -10 ---------- Run | Yrd Mat Min Machines Disabled 1 | . 1 . Max in Single Turn 1 | . 1 . Machines Repaired . | . . . Machines Dismantled . | . . . Machines Sabotaged . | . . . Overloaded Fab Kills . | . . . Hacking | -11 -10 -10 --------- Run | Yrd Mat Min Machines Accessed 5 | . 5 . Terminals 5 | . 5 . Fabricators . | . . . Repair Stations . | . . . Recycling Units . | . . . Scanalyzers . | . . . Garrison Access . | . . . Total Hacks 17 | . 17 . Successful 9 | . 9 . Failed 7 | . 7 . Catastrophic 1 | . 1 . Database Lockouts 1 | . 1 . Manual 12 | . 12 . Terminals 17 | . 17 . Fabricators . | . . . Repair Stations . | . . . Recycling Units . | . . . Scanalyzers . | . . . Garrison Access . | . . . Terminal Hacks 6 | . 6 . Robot Analysis 2 | . 2 . Prototype ID Bank 1 | . 1 . Terminal Index 1 | . 1 . Recycling Unit Index 1 | . 1 . Hauler Manifests 1 | . 1 . Fabricator Hacks . | . . . Repair Station Hacks . | . . . Recycling Unit Hacks . | . . . Scanalyzer . | . . . Garrison Access Hacks . | . . . Unauthorized Hacks 3 | . 3 . Terminals 3 | . 3 . Botnet 3 | . 3 . Fabricators . | . . . Repair Stations . | . . . Recycling Units . | . . . Scanalyzers . | . . . Garrison Access . | . . . Data Cores Recovered . | . . . Used . | . . . Hacking Detections 5 | . 5 . Full Trace Events 4 | . 4 . Feedback Events . | . . . Feedback Blocked . | . . . Robot Schematics Acquired . | . . . Robots Built . | . . . Authchips . | . . . Time . | . . . Total Robot Build Rating . | . . . Part Schematics Acquired . | . . . Parts Built . | . . . Authchips . | . . . Time . | . . . Total Part Build Rating . | . . . Part Studies Acquired . | . . . Parts Repaired . | . . . Time . | . . . Parts Recycled . | . . . Recycled Matter . | . . . Retrieved Matter . | . . . Retrieved Components . | . . . Parts Scanalyzed . | . . . Part Schematics Acquired . | . . . Parts Damaged . | . . . Bothacking | -11 -10 -10 ------------ Run | Yrd Mat Min Used RIF Installer . | . . . Robots Hacked . | . . . Non-combat . | . . . Combat . | . . . Robot Hacks Applied . | . . . Relay Couplers Released . | . . . Fabnet Peak Effective % . | . . . Robots Rewired . | . . . Allies Hacked . | . . . Hacks Repelled . | . . . Allies | -11 -10 -10 -------- Run | Yrd Mat Min Total Allies . | . . . Largest Group . | . . . Highest-Rated Group . | . . . Highest-Rated Ally . | . . . Total Orders . | . . . Ally Attacks . | . . . Total Damage . | . . . Kills . | . . . Allies Corrupted . | . . . Allies Melted . | . . . Intel | -11 -10 -10 ------- Run | Yrd Mat Min Active Infowar (turns) 581 | . 581 . Sensors 581 | . 581 . Robot Analysis Total 2 | . 2 . Derelict Logs Recovered 1 | . . 1 Drone Launches . | . . . Drone Recoveries . | . . . Exploration | -11 -10 -10 ------------- Run | Yrd Mat Min Turns Passed 1502 | 77 1202 223 Spaces Moved 979 | 54 784 141 Core 6 | 6 . . Treads . | . . . Legs 973 | 48 784 141 Wheels . | . . . Hover . | . . . Flight . | . . . Fastest Speed 50 | 50 120 120 Average Speed 119 | 115 120 120 Slowest Speed 190 | 150 190 120 Overloaded Moves . | . . . Propulsion Burnouts . | . . . Robots Hopped . | . . . Potential Cave-ins . | . . . Cave-ins Triggered . | . . . Exploration Rate (%) 46 | 4 90 44 Regions Visited 2 Branch Regions 1 Pre-discovered Areas . | . . . Known Exits Taken . | . . . Unknown Exits Taken 2 | 1 1 . Scrap Searched 1 | . . 1 Spaces Dug . | . . . Terrain Destroyed 7 | . . 7 Melee . | . . . Projectile . | . . . AOE 7 | . . 7 Terrain Rammed . | . . . Walls Destroyed . | . . . Machines Disabled . | . . . Actions | -11 -10 -10 --------- Run | Yrd Mat Min Total 1204 | 65 974 165 Wait 100 | . 99 1 Move 977 | 53 783 141 Hop . | . . . Pick Up 20 | 6 14 . Fast Attach 9 | 6 2 1 Attach 2 | . 1 1 Detach . | . . . Swap 17 | . 14 3 Drop 19 | . 18 1 Fire 60 | . 43 17 Melee . | . . . Ram . | . . . Kick . | . . . Crush . | . . . Escape Stasis . | . . . Rewire . | . . . Trap . | . . . Miscellaneous . | . . . Route ------- -11/Scrapyard -10/Materials (discovered 4 exits: [*Mat x2] / [*Min] / [*Sub]) -10/Mines (discovered 1 exit: [*Mat]) History --------- Turn | Location | Event 6 | -11/Scrapyard | Discovered new exit (range 16) 78 | -11/Scrapyard | Entered Materials 255 | -10/Materials | Discovered new exit (range 5) 314 | -10/Materials | Build established: Mutant 388 | -10/Materials | Discovered new exit (range 6) 578 | -10/Materials | Derelicts attacked the area 720 | -10/Materials | Core integrity fell below 50% 871 | -10/Materials | Discovered new exit (range 8) 1000 | -10/Materials | Discovered new exit (range 15) 1026 | -10/Materials | Build established: Scavenger-Mutant 1075 | -10/Materials | Central database locked down 1280 | -10/Materials | Entered Mines 1315 | -10/Mines | Discovered new exit (range 8) 1449 | -10/Mines | Learned Materials terminal intel 1492 | -10/Mines | Core integrity fell below 20% 1503 | -10/Mines | Destroyed by Y-45 Defender with Beam Rifle Last Messages --------------- K-01 Serf collects debris. Searching scrap... Found Aluminum Leg. Found Tractor Beam. Found 39 Matter. Dropped Aluminum Leg. Acquired 8 matter. U-05 Engineer destroyed. Acquired 4 matter. K-01 Serf collects debris. R-06 Scavenger destroyed. Acquired 6 matter. Acquired derelict log, extracted data. Data stored: Materials terminal intel. K-01 Serf collects debris. Heat Sink destroyed. K-01 Serf collects debris. Acquired Core Shielding. Lgt. Nuclear Core destroyed. Critical hit (Burn: +37). Map ----- +----------------------------------------------------+ | | | | | | | | | | | | | | | | | | | | | | | | | | | | | | | | | | | | | | | | | | | ????????????????????????????????????????????? | | ???????????????????????################?????? | | ??????????????????###### ????? | | ?????????????????##[!## #???? | | ?????????????????#"!@ # #???? | | ?????????????????#Y ; #???? | | ?????????????????#Y + #???? | | ?????????????????#"!! # #???? | | ?????????????????##![## #???? | | ??????????????????###### #???? | | ???????????????????????# #???? | | ???????????????????????# #???? | | ???????????????????????# #???? | | ???????????????????????# #???? | | ???????????????????????# #???? | | ???????????????????????# #???? | | ???????????????????????# #???? | | ???????????????????????# #???? | | ???????????????????????# ##### | | ???????????????????????# # | | ???????????????????????# ## # | | ???????????????????????# ## # | | ???????????????????????################### # | | ?????????????????????????????????????????# # | | ?????????????????????????????????????????# # | | ?????????????????????????????#####???????# # | | ?????????????????????????????# #??????# # | | ?????????????????????????????? #?????# # | | ????????????????????????????#? ?????# # | +----------------------------------------------------+ Best States ------------- Heat Dissipation 35 Energy Generation 14 Energy Capacity 250 Matter Stores 300 Matter Capacity 300 Sight Range 16 Robot Scan Range 14 Terrain Scan Density 10 Core Shielding 20 Evasion (%) 55 Item Schematics ----------------- None Robot Schematics ------------------ None Fabricated ------------ Nothing Repaired ---------- Nothing Studied --------- None Alien Tech Used ----------------- None Achievements -------------- Let's See Who's Tougher Challenges ------------ None Game ------ Seed BladeServoDriveblaster Manual? 0 Play Time 00:19:33 Cumulative 14.7 hours Start 2026.07.13 @ 16:25:17 End 2026.07.13 @ 16:44:57 Sessions 1 Manual Loads 0 Difficulty Rogue Special Mode None Game No. 10 Rogue 10 Adventurer 0 Explorer 0 Win Type - Total 0 Types 0/0/0/0/0/0/0/0/0/0 Lore% 20 Gallery% 16 Achievement% 18 Wizard Run 0 Options --------- Layout 0 ASCII 0 Keyboard 1 Movement Vi Keybinds 0 Fullscreen 1 Font 18/SmallcapsGlow Map View 76x50 Zoom Use 0% Tactical HUD 0 Map Filters NONE Filters NONE Steam 1 RUN: b92f860a-ae18-4477-9cbc-7c687aee27ab